fUSD/lending_fUSD_20240924
["ID","MTS","AMOUNT","RATE_DAILY","PERIOD"]
[339047544,1727176240372,-150.0,0.0001178,2]
[339047546,1727176240381,-150.0,0.00011799,2]
[339047548,1727176240391,-150.0,0.00011803,2]
[339047550,1727176240400,-150.0,0.00011824,2]
[339047552,1727176240410,-150.0,0.00011832,2]
[339047554,1727176240419,-150.0,0.00011836,2]
[339047556,1727176240428,-150.0,0.00011861,2]
[339047558,1727176240438,-150.0,0.00011873,2]
[339047560,1727176240448,-150.0,0.00011873,2]
[339047562,1727176240457,-150.0,0.0001189,2]
[339047564,1727176240467,-150.0,0.00011893,2]
[339047566,1727176240477,-171.66,0.00011904,2]
[339047568,1727176240488,-150.0,0.0001191,2]
[339047570,1727176240497,-150.0,0.00011919,2]
[339047572,1727176240507,-150.0,0.00011947,2]
[339047574,1727176240516,-150.0,0.00011947,2]
[339047576,1727176240525,-97.06992441,0.00011961,2]
[339047578,1727176240537,-52.93007559,0.00011961,2]
[339047580,1727176240547,-150.0,0.00011966,2]
[339047582,1727176240556,-129.61651644,0.00011976,2]
[339047584,1727176240567,-20.38348356,0.00011976,2]
[339047586,1727176240577,-150.0,0.00011985,2]
[339047588,1727176240586,-150.0,0.00012005,2]
[339047590,1727176240595,-150.0,0.00012022,2]
[339047592,1727176240604,-150.0,0.00012029,2]
[339047594,1727176240613,-107.7807884,0.00012034,2]
[339047596,1727176240624,-42.2192116,0.00012034,2]
[339047598,1727176240633,-150.0,0.00012059,2]
[339047600,1727176240643,-150.0,0.00012059,2]
[339047602,1727176240652,-53.26118018,0.00012063,2]
[339047620,1727176240839,-96.73881982,0.00012063,2]
[339047621,1727176240849,-150.0,0.00012092,2]
[339047622,1727176240858,-150.0,0.00012096,2]
[339047623,1727176240868,-150.0,0.00012098,2]
[339047624,1727176240877,-150.0,0.00012121,2]
[339047625,1727176240887,-150.0,0.00012133,2]
[339047626,1727176240897,-150.0,0.00012149,2]
[339047627,1727176240906,-150.0,0.00012151,2]
[339047628,1727176240915,-150.0,0.00012166,2]
[339047629,1727176240925,-150.0,0.0001217,2]
[339047631,1727176240934,-150.0,0.00012178,2]
[339047633,1727176240943,-150.0,0.00012207,2]
[339047635,1727176240953,-150.0,0.00012207,2]
[339047637,1727176240963,-150.0,0.00012234,2]
[339047639,1727176240972,-150.0,0.00012236,2]
[339047641,1727176240981,-150.0,0.00012244,2]
[339047643,1727176240991,-150.0,0.00012244,2]
[339047645,1727176241001,-150.0,0.00012265,2]
[339047647,1727176241010,-150.0,0.00012281,2]
[339047649,1727176241019,-150.0,0.00012294,2]
[339047650,1727176241029,-150.0,0.00012303,2]
[339047652,1727176241038,-150.0,0.00012318,2]
[339047654,1727176241048,-150.0,0.00012323,2]
[339047656,1727176241058,-150.0,0.00012337,2]
[339047658,1727176241067,-150.0,0.00012337,2]
[339047660,1727176241077,-150.0,0.00012337,2]
[339047662,1727176241086,-150.0,0.00012351,2]
[339047664,1727176241095,-150.0,0.00012356,2]
[339047666,1727176241105,-420.0,0.00012359,2]
[339047668,1727176241114,-150.0,0.00012371,2]
[339047670,1727176241124,-150.0,0.0001238,2]
[339047671,1727176241134,-150.0,0.00012393,2]
[339047672,1727176241143,-150.0,0.00012409,2]
[339047673,1727176241154,-150.0,0.0001243,2]
[339047674,1727176241163,-150.0,0.0001243,2]
[339047675,1727176241172,-150.0,0.00012438,2]
[339047676,1727176241183,-150.0,0.0001244,2]
[339047677,1727176241193,-150.0,0.00012467,2]
[339047678,1727176241204,-150.0,0.00012467,2]
[339047679,1727176241214,-236.65,0.00012474,2]
[339047680,1727176241223,-1000.0,0.00012495,2]
[339047681,1727176241233,-150.0,0.00012496,2]
[339047682,1727176241245,-150.0,0.00012504,2]
[339047683,1727176241255,-150.0,0.00012508,2]
[339047684,1727176241264,-150.0,0.00012523,2]
[339047685,1727176241274,-150.0,0.00012525,2]
[339047686,1727176241283,-150.0,0.00012541,2]
[339047687,1727176241293,-150.0,0.00012553,2]
[339047688,1727176241302,-150.0,0.00012576,2]
[339047689,1727176241311,-150.0,0.00012578,2]
[339047690,1727176241322,-150.0,0.00012582,2]
[339047691,1727176241332,-150.0,0.00012611,2]
[339047692,1727176241342,-150.0,0.00012615,2]
[339047693,1727176241352,-150.0,0.00012615,2]
[339047694,1727176241363,-150.0,0.0001264,2]
[339047695,1727176241373,-150.0,0.00012645,2]
[339047696,1727176241383,-150.0,0.00012652,2]
[339047697,1727176241393,-150.0,0.00012669,2]
[339047698,1727176241403,-150.0,0.00012689,2]
[339047699,1727176241413,-150.0,0.00012698,2]
[339047700,1727176241423,-13492.0,0.00012702,2]
[339047701,1727176241434,-150.0,0.00012708,2]
[339047702,1727176241444,-150.0,0.00012713,2]
[339047703,1727176241454,-150.0,0.00012727,2]
[339047704,1727176241465,-150.0,0.00012727,2]
[339047705,1727176241477,-150.0,0.00012755,2]
[339047706,1727176241486,-150.0,0.00012764,2]
[339047707,1727176241495,-99080.8404,0.00012776,2]
[339047708,1727176241505,-3271.6438,0.00012776,2]
[339047709,1727176241516,-177.84648801,0.00012776,2]
[339047710,1727176241526,-150.0,0.00012781,2]
[339047711,1727176241535,-150.0,0.00012784,2]
[339047712,1727176241544,-150.0,0.00012801,2]
[339047713,1727176241553,-150.0,0.00012801,2]
[339047714,1727176241563,-150.0,0.00012813,2]
[339047715,1727176241573,-333.0,0.00012832,2]
[339047716,1727176241582,-150.0,0.00012838,2]
[339047717,1727176241592,-177.846488,0.00012838,2]
[339047718,1727176241602,-150.0,0.00012842,2]
[339047719,1727176241611,-700.517,0.00012845,2]
[339047720,1727176241620,-172.918,0.00012845,2]
[339047721,1727176241630,-150.0,0.0001285,2]
[339047722,1727176241639,-150.0,0.00012871,2]
[339047723,1727176241648,-473.44858279,0.00012873,2]
[339047724,1727176241858,-150.0,0.00012875,2]
[339047725,1727176241868,-500.0,0.00012876,2]
[339047726,1727176241878,-500.0,0.00012876,2]
[339047727,1727176241887,-500.0,0.00012876,2]
[339047728,1727176241896,-500.0,0.00012876,2]
[339047729,1727176241905,-500.0,0.00012876,2]
[339047730,1727176241915,-500.0,0.00012876,2]
[339047731,1727176241925,-500.0,0.00012876,2]
[339047732,1727176241934,-401.78233454,0.00012876,2]
[339047733,1727176241943,-500.0,0.00012876,2]
[339047734,1727176241952,-499.23253635,0.00012876,2]
[339047735,1727176241962,-500.5177619,0.00012876,2]
[339047736,1727176241972,-509.92527787,0.00012876,2]
[339047737,1727176241982,-500.0,0.00012876,2]
[339047738,1727176241996,-153.75772356,0.00012876,2]
[339047739,1727176242008,-503.37576766,0.00012876,2]
[339047740,1727176242017,-500.0,0.00012876,2]
[339047741,1727176242027,-503.49312066,0.00012876,2]
[339047742,1727176242036,-507.71554597,0.00012876,2]
[339047743,1727176242047,-500.0,0.00012876,2]
[339047744,1727176242057,-500.0,0.00012876,2]
[339047745,1727176242066,-500.0,0.00012876,2]
[339047746,1727176242075,-500.0,0.00012876,2]
[339047747,1727176242084,-503.7054323,0.00012876,2]
[339047748,1727176242094,-503.37173481,0.00012876,2]
[339047749,1727176242103,-500.0,0.00012876,2]
[339047750,1727176242111,-500.0,0.00012876,2]
[339047751,1727176242120,-504.40165789,0.00012876,2]
[339047752,1727176242129,-500.0,0.00012876,2]
[339047753,1727176242139,-494.31033347,0.00012876,2]
[339047754,1727176242148,-505.55696567,0.00012876,2]
[339047755,1727176242157,-500.0,0.00012876,2]
[339047756,1727176242167,-507.39328152,0.00012876,2]
[339047757,1727176242176,-500.0,0.00012876,2]
[339047758,1727176242186,-508.21077675,0.00012876,2]
[339047759,1727176242195,-500.0,0.00012876,2]
[339047760,1727176242204,-553.59,0.00012876,2]
[339047761,1727176242213,-500.0,0.00012876,2]
[339047762,1727176242222,-500.0,0.00012876,2]
[339047763,1727176242231,-500.0,0.00012876,2]
[339047764,1727176242246,-500.0,0.00012876,2]
[339047765,1727176242255,-562.25807823,0.00012876,2]
[339047766,1727176242265,-500.0,0.00012876,2]
[339047767,1727176242275,-500.0,0.00012876,2]
[339047768,1727176242284,-500.0,0.00012876,2]
[339047769,1727176242293,-678.43,0.00012876,2]
[339047770,1727176242302,-500.0,0.00012876,2]
[339047771,1727176242311,-501.26850714,0.00012876,2]
[339047772,1727176242320,-417.2131784,0.00012876,2]
[339047773,1727176242329,-500.0,0.00012876,2]
[339047774,1727176242339,-500.0,0.00012876,2]
[339047775,1727176242348,-500.0,0.00012876,2]
[339047776,1727176242358,-151.80460842,0.00012876,2]
[339047777,1727176242367,-534.11502915,0.00012876,2]
[339047778,1727176242376,-500.0,0.00012876,2]
[339047779,1727176242385,-500.0,0.00012876,2]
[339047780,1727176242395,-500.0,0.00012876,2]
[339047781,1727176242404,-500.0,0.00012876,2]
[339047782,1727176242413,-604.23698597,0.00012876,2]
[339047783,1727176242423,-500.0,0.00012876,2]
[339047784,1727176242432,-500.0,0.00012876,2]
[339047785,1727176242441,-500.0,0.00012876,2]
[339047786,1727176242451,-641.82,0.00012876,2]
[339047787,1727176242459,-1622.76,0.00012876,2]
[339047788,1727176242469,-500.0,0.00012876,2]
[339047789,1727176242478,-500.0,0.00012876,2]
[339047790,1727176242488,-500.0,0.00012876,2]
[339047791,1727176242498,-500.0,0.00012876,2]
[339047792,1727176242507,-500.0,0.00012876,2]
[339047793,1727176242517,-500.0,0.00012876,2]
[339047794,1727176242527,-500.0,0.00012876,2]
[339047795,1727176242536,-500.0,0.00012876,2]
[339047796,1727176242546,-500.0,0.00012876,2]
[339047797,1727176242557,-500.0,0.00012876,2]
[339047798,1727176242568,-500.0,0.00012876,2]
[339047799,1727176242578,-500.0,0.00012876,2]
[339047800,1727176242590,-500.0,0.00012876,2]
[339047801,1727176242600,-500.0,0.00012876,2]
[339047802,1727176242610,-500.0,0.00012876,2]
[339047803,1727176242620,-500.0,0.00012876,2]
[339047804,1727176242629,-500.0,0.00012876,2]
[339047805,1727176242639,-500.0,0.00012876,2]
[339047806,1727176242648,-500.0,0.00012876,2]
[339047807,1727176242658,-500.0,0.00012876,2]
[339047808,1727176242668,-500.0,0.00012876,2]
[339047810,1727176242677,-509.94,0.00012876,7]
[339047811,1727176242687,-500.0,0.00012876,2]
[339047812,1727176242696,-500.0,0.00012876,2]
[339047813,1727176242705,-500.0,0.00012876,2]
[339047815,1727176242714,-500.0,0.00012876,2]
[339047816,1727176242724,-500.0,0.00012876,2]
[339047817,1727176242737,-500.0,0.00012876,2]
[339047818,1727176242747,-500.0,0.00012876,2]
[339047819,1727176242756,-500.0,0.00012876,2]
[339047820,1727176242766,-500.0,0.00012876,2]
[339047821,1727176242775,-708.26,0.00012876,2]
[339047822,1727176242785,-502.05073023,0.00012876,2]
[339047823,1727176242795,-500.0,0.00012876,2]
[339047824,1727176242804,-503.70513539,0.00012876,2]
[339047825,1727176242814,-504.15532615,0.00012876,2]
[339047826,1727176242824,-500.0,0.00012876,2]
[339047827,1727176242837,-500.0,0.00012876,2]
[339047828,1727176242853,-500.0,0.00012876,2]
[339047829,1727176242862,-500.0,0.00012876,2]
[339047830,1727176242871,-1218.69,0.00012876,2]
[339047831,1727176242882,-500.0,0.00012876,2]
[339047832,1727176242891,-505.90846627,0.00012876,2]
[339047833,1727176242901,-667.15,0.00012876,2]
[339047834,1727176242911,-503.81846938,0.00012876,2]
[339047835,1727176242921,-500.0,0.00012876,2]
[339047836,1727176242930,-507.29307392,0.00012876,2]
[339047837,1727176242939,-500.0,0.00012876,2]
[339047838,1727176242949,-500.0,0.00012876,2]
[339047839,1727176242958,-500.0,0.00012876,2]
[339047840,1727176242968,-590.5536816,0.00012876,2]
[339047841,1727176242977,-500.0,0.00012876,2]
[339047842,1727176242987,-500.0,0.00012876,2]
[339047843,1727176242997,-500.0,0.00012876,2]
[339047844,1727176243006,-500.0,0.00012876,2]
[339047845,1727176243015,-500.0,0.00012876,2]
[339047846,1727176243024,-500.0,0.00012876,2]
[339047847,1727176243033,-2585.38,0.00012876,2]
[339047848,1727176243043,-1541.66,0.00012876,2]
[339047849,1727176243052,-500.0,0.00012876,2]
[339047851,1727176243061,-500.0,0.00012876,2]
[339047852,1727176243071,-500.0,0.00012876,2]
[339047853,1727176243082,-500.0,0.00012876,2]
[339047854,1727176243091,-500.0,0.00012876,2]
[339047855,1727176243099,-500.0,0.00012876,2]
[339047856,1727176243108,-500.0,0.00012876,2]
[339047857,1727176243118,-500.0,0.00012876,2]
[339047858,1727176243129,-500.0,0.00012876,2]
[339047859,1727176243139,-1865.87,0.00012876,2]
[339047860,1727176243148,-934.18,0.00012876,2]
[339047861,1727176243158,-500.0,0.00012876,2]
[339047862,1727176243167,-500.0,0.00012876,2]
[339047863,1727176243177,-1451.26,0.00012876,2]
[339047864,1727176243186,-500.0,0.00012876,2]
[339047865,1727176243196,-500.0,0.00012876,2]
[339047866,1727176243206,-1257.36,0.00012876,2]
[339047867,1727176243215,-500.0,0.00012876,2]
[339047868,1727176243225,-500.0,0.00012876,2]
[339047869,1727176243234,-500.0,0.00012876,2]
[339047870,1727176243245,-500.0,0.00012876,2]
[339047871,1727176243254,-833.53,0.00012876,2]
[339047872,1727176243265,-500.0,0.00012876,2]
[339047873,1727176243274,-551.79575764,0.00012876,2]
[339047874,1727176243284,-500.0,0.00012876,2]
[339047875,1727176243293,-500.0,0.00012876,2]
[339047876,1727176243303,-500.0,0.00012876,2]
[339047877,1727176243313,-500.0,0.00012876,2]
[339047878,1727176243323,-500.0,0.00012876,2]
[339047879,1727176243333,-500.0,0.00012876,2]
[339047880,1727176243342,-500.0,0.00012876,2]
[339047881,1727176243353,-500.0,0.00012876,2]
[339047882,1727176243363,-320.25565855,0.00012876,2]
[339047883,1727176243728,-179.74434145,0.00012876,2]
[339047884,1727176243738,-500.0,0.00012876,2]
[339047885,1727176243748,-500.0,0.00012876,2]
[339047886,1727176243758,-500.0,0.00012876,2]
[339047887,1727176243767,-500.0,0.00012876,2]
[339047888,1727176243779,-500.0,0.00012876,2]
[339047889,1727176243789,-574.07589116,0.00012876,2]
[339047890,1727176243800,-813.21,0.00012876,2]
[339047891,1727176243810,-225.38274594,0.00012876,2]
[339047892,1727176243821,-603.95,0.00012876,2]
[339047893,1727176243831,-505.4862771,0.00012876,2]
[339047894,1727176243845,-500.0,0.00012876,2]
[339047895,1727176243854,-500.0,0.00012876,2]
[339047896,1727176243864,-500.0,0.00012876,2]
[339047897,1727176243874,-500.0,0.00012876,2]
[339047898,1727176243884,-500.0,0.00012876,2]
[339047899,1727176243893,-500.0,0.00012876,2]
[339047900,1727176243903,-500.0,0.00012876,2]
[339047901,1727176243912,-500.0,0.00012876,2]
[339047902,1727176243921,-500.0,0.00012876,2]
[339047903,1727176243932,-500.0,0.00012876,2]
[339047904,1727176243942,-500.0,0.00012876,2]
[339047905,1727176243951,-507.64726675,0.00012876,2]
[339047906,1727176243962,-500.0,0.00012876,2]
[339047907,1727176243971,-739.38,0.00012876,2]
[339047908,1727176243980,-520.88,0.00012876,2]
[339047909,1727176243991,-500.0,0.00012876,2]
[339047910,1727176244000,-500.0,0.00012876,2]
[339047911,1727176244009,-500.0,0.00012876,2]
[339047912,1727176244019,-500.0,0.00012876,2]
[339047913,1727176244029,-500.0,0.00012876,2]
[339047914,1727176244039,-692.9,0.00012876,2]
[339047915,1727176244048,-500.0,0.00012876,2]
[339047916,1727176244058,-500.0,0.00012876,2]
[339047917,1727176244067,-500.0,0.00012876,2]
[339047918,1727176244076,-150.0,0.00012876,2]
[339047919,1727176244086,-500.0,0.00012876,2]
[339047920,1727176244096,-500.0,0.00012876,2]
[339047921,1727176244105,-500.0,0.00012876,2]
[339047922,1727176244115,-500.0,0.00012876,2]
[339047923,1727176244125,-500.0,0.00012876,2]
[339047924,1727176244134,-500.0,0.00012876,2]
[339047925,1727176244144,-500.0,0.00012876,2]
[339047926,1727176244153,-757.38,0.00012876,2]
[339047927,1727176244163,-500.0,0.00012876,2]
[339047928,1727176244173,-500.0,0.00012876,2]
[339047929,1727176244182,-500.0,0.00012876,2]
[339047930,1727176244192,-500.0,0.00012876,2]
[339047931,1727176244201,-500.0,0.00012876,2]
[339047932,1727176244211,-648.8392523,0.00012876,2]
[339047933,1727176244220,-500.0,0.00012876,2]
[339047934,1727176244230,-500.0,0.00012876,2]
[339047935,1727176244241,-500.0,0.00012876,2]
[339047936,1727176244250,-500.0,0.00012876,2]
[339047937,1727176244260,-660.46,0.00012876,2]
[339047938,1727176244269,-500.0,0.00012876,2]
[339047939,1727176244279,-500.0,0.00012876,2]
[339047940,1727176244288,-500.0,0.00012876,2]
[339047941,1727176244298,-500.0,0.00012876,2]
[339047942,1727176244309,-500.0,0.00012876,2]
[339047943,1727176244319,-500.0,0.00012876,2]
[339047944,1727176244328,-606.54,0.00012876,2]
[339047945,1727176244337,-500.0,0.00012876,2]
[339047946,1727176244347,-500.0,0.00012876,2]
[339047947,1727176244356,-500.0,0.00012876,2]
[339047948,1727176244366,-500.0,0.00012876,2]
[339047949,1727176244375,-721.72,0.00012876,2]
[339047950,1727176244385,-500.0,0.00012876,2]
[339047951,1727176244394,-500.0,0.00012876,2]
[339047952,1727176244404,-500.0,0.00012876,2]
[339047953,1727176244413,-467.49059946,0.00012876,2]
[339047954,1727176244421,-500.0,0.00012876,2]
[339047955,1727176244431,-500.0,0.00012876,2]
[339047956,1727176244441,-500.0,0.00012876,2]
[339047957,1727176244451,-500.0,0.00012876,2]
[339047958,1727176244461,-500.0,0.00012876,2]
[339047959,1727176244470,-500.0,0.00012876,2]
[339047960,1727176244481,-466.9640847,0.00012876,2]
[339047961,1727176244492,-500.0,0.00012876,2]
[339047962,1727176244502,-500.0,0.00012876,2]
[339047963,1727176244511,-500.0,0.00012876,2]
[339047964,1727176244521,-547.12,0.00012876,2]
[339047965,1727176244531,-510.99751941,0.00012876,2]
[339047966,1727176244541,-500.0,0.00012876,2]
[339047967,1727176244551,-500.0,0.00012876,2]
[339047968,1727176244561,-1126.35,0.00012876,2]
[339047969,1727176244571,-500.0,0.00012876,2]
[339047970,1727176244580,-500.0,0.00012876,2]
[339047971,1727176244590,-500.0,0.00012876,2]
[339047972,1727176244600,-500.0,0.00012876,2]
[339047973,1727176244609,-500.0,0.00012876,2]
[339047974,1727176244618,-500.0,0.00012876,2]
[339047975,1727176244628,-500.0,0.00012876,2]
[339047976,1727176244638,-500.0,0.00012876,2]
[339047977,1727176244648,-500.0,0.00012876,2]
[339047978,1727176244658,-500.0,0.00012876,2]
[339047979,1727176244667,-500.0,0.00012876,2]
[339047980,1727176244678,-500.0,0.00012876,2]
[339047981,1727176244688,-500.0,0.00012876,2]
[339047982,1727176244698,-500.0,0.00012876,2]
[339047983,1727176244707,-879.53,0.00012876,2]
[339047984,1727176244716,-500.0,0.00012876,2]
[339047985,1727176244726,-500.0,0.00012876,2]
[339047986,1727176244736,-500.0,0.00012876,2]
[339047987,1727176244747,-887.85,0.00012876,2]
[339047988,1727176244757,-2207.62,0.00012876,2]
[339047989,1727176244767,-500.0,0.00012876,2]
[339047990,1727176244776,-500.0,0.00012876,2]
[339047991,1727176244786,-705.42,0.00012876,2]
[339047992,1727176244796,-602.83,0.00012876,2]
[339047993,1727176244805,-500.0,0.00012876,2]
[339047994,1727176244816,-500.0,0.00012876,2]
[339047995,1727176244825,-764.46,0.00012876,2]
[339047996,1727176244835,-500.0,0.00012876,2]
[339047997,1727176244845,-500.0,0.00012876,2]
[339047998,1727176244860,-500.0,0.00012876,2]
[339047999,1727176244869,-607.33,0.00012876,2]
[339048000,1727176244879,-497.99928012,0.00012876,2]
[339048001,1727176244888,-500.0,0.00012876,2]
[339048002,1727176244899,-666.4,0.00012876,2]
[339048003,1727176244908,-157.2086917,0.00012876,2]
[339048004,1727176244918,-500.0,0.00012876,2]
[339048005,1727176244927,-500.0,0.00012876,2]
[339048006,1727176244948,-500.0,0.00012876,2]
[339048007,1727176244960,-500.0,0.00012876,2]
[339048008,1727176244971,-500.0,0.00012876,2]
[339048009,1727176244981,-502.30592613,0.00012876,2]
[339048010,1727176244992,-502.85541081,0.00012876,2]
[339048011,1727176245002,-500.0,0.00012876,2]
[339048012,1727176245011,-500.0,0.00012876,2]
[339048013,1727176245021,-500.0,0.00012876,2]
[339048014,1727176245030,-500.0,0.00012876,2]
[339048015,1727176245041,-500.0,0.00012876,2]
[339048016,1727176245051,-736.02,0.00012876,2]
[339048017,1727176245061,-502.87838004,0.00012876,2]
[339048018,1727176245072,-500.0,0.00012876,2]
[339048019,1727176245082,-500.0,0.00012876,2]
[339048020,1727176245092,-1291.18,0.00012876,2]
[339048021,1727176245102,-500.0,0.00012876,2]
[339048022,1727176245113,-500.0,0.00012876,2]
[339048023,1727176245123,-500.0,0.00012876,2]
[339048024,1727176245133,-500.0,0.00012876,2]
[339048025,1727176245144,-500.0,0.00012876,2]
[339048026,1727176245154,-519.27508109,0.00012876,2]
[339048027,1727176245164,-3318.64,0.00012876,2]
[339048028,1727176245175,-500.0,0.00012876,2]
[339048029,1727176245184,-500.0,0.00012876,2]
[339048030,1727176245195,-500.0,0.00012876,2]
[339048031,1727176245205,-500.0,0.00012876,2]
[339048032,1727176245214,-500.0,0.00012876,2]
[339048033,1727176245226,-500.0,0.00012876,2]
[339048034,1727176245236,-1181.47,0.00012876,2]
[339048035,1727176245253,-501.6778762,0.00012876,2]
[339048036,1727176245263,-500.0,0.00012876,2]
[339048037,1727176245273,-500.0,0.00012876,2]
[339048038,1727176245282,-669.63,0.00012876,2]
[339048039,1727176245292,-2293.76,0.00012876,2]
[339048040,1727176245303,-500.0,0.00012876,2]
[339048041,1727176245314,-500.0,0.00012876,2]
[339048042,1727176245323,-500.0,0.00012876,2]
[339048043,1727176245333,-500.0,0.00012876,2]
[339048044,1727176245343,-500.0,0.00012876,2]
[339048045,1727176245353,-500.0,0.00012876,2]
[339048046,1727176245363,-228.5810936,0.00012876,2]
[339048047,1727176245373,-1276.86,0.00012876,2]
[339048048,1727176245383,-500.0,0.00012876,2]
[339048049,1727176245393,-500.0,0.00012876,2]
[339048050,1727176245403,-500.0,0.00012876,2]
[339048051,1727176245413,-3291.7,0.00012876,2]
[339048052,1727176245422,-500.0,0.00012876,2]
[339048053,1727176245432,-549.19978024,0.00012876,2]
[339048054,1727176245441,-500.0,0.00012876,2]
[339048055,1727176245452,-500.0,0.00012876,2]
[339048056,1727176245462,-500.0,0.00012876,2]
[339048057,1727176245471,-2146.21,0.00012876,2]
[339048058,1727176245481,-500.0,0.00012876,2]
[339048059,1727176245493,-500.0,0.00012876,2]
[339048060,1727176245503,-500.0,0.00012876,2]
[339048061,1727176245513,-431.81182674,0.00012876,2]
[339048062,1727176245523,-1846.83,0.00012876,2]
[339048063,1727176245533,-500.0,0.00012876,2]
[339048064,1727176245542,-500.0,0.00012876,2]
[339048065,1727176245552,-500.0,0.00012876,2]
[339048066,1727176245562,-1092.3,0.00012876,2]
[339048067,1727176245571,-500.0,0.00012876,2]
[339048068,1727176245581,-500.0,0.00012876,2]
[339048069,1727176245590,-500.0,0.00012876,2]
[339048070,1727176245599,-2049.9,0.00012876,2]
[339048071,1727176245609,-500.0,0.00012876,2]
[339048072,1727176245619,-500.0,0.00012876,2]
[339048073,1727176245629,-500.0,0.00012876,2]
[339048074,1727176245639,-744.7,0.00012876,2]
[339048075,1727176245648,-500.0,0.00012876,2]
[339048076,1727176245658,-500.0,0.00012876,2]
[339048077,1727176245668,-662.2,0.00012876,2]
[339048078,1727176245678,-500.0,0.00012876,2]
[339048080,1727176245688,-500.0,0.00012876,2]
[339048081,1727176245936,-500.0,0.00012876,2]
[339048082,1727176245946,-500.0,0.00012876,2]
[339048083,1727176245956,-712.65,0.00012876,2]
[339048084,1727176245967,-500.0,0.00012876,2]
[339048085,1727176245977,-500.0,0.00012876,2]
[339048086,1727176245987,-500.0,0.00012876,2]
[339048087,1727176245998,-500.0,0.00012876,2]
[339048088,1727176246007,-1372.69,0.00012876,2]
[339048089,1727176246017,-500.0,0.00012876,2]
[339048090,1727176246026,-500.0,0.00012876,2]
[339048091,1727176246036,-500.0,0.00012876,2]
[339048092,1727176246046,-1558.9,0.00012876,2]
[339048093,1727176246055,-500.0,0.00012876,2]
[339048094,1727176246064,-500.0,0.00012876,2]
[339048095,1727176246074,-500.0,0.00012876,2]
[339048096,1727176246084,-500.0,0.00012876,2]
[339048097,1727176246094,-500.0,0.00012876,2]
[339048098,1727176246103,-500.0,0.00012876,2]
[339048099,1727176246112,-500.0,0.00012876,2]
[339048100,1727176246122,-500.0,0.00012876,2]
[339048101,1727176246131,-500.0,0.00012876,2]
[339048102,1727176246141,-500.0,0.00012876,2]
[339048103,1727176246150,-500.0,0.00012876,2]
[339048104,1727176246160,-161.47485771,0.00012876,2]
[339048105,1727176246170,-500.0,0.00012876,2]
[339048106,1727176246179,-500.0,0.00012876,2]
[339048107,1727176246189,-521.09799744,0.00012876,2]
[339048108,1727176246198,-500.0,0.00012876,2]
[339048109,1727176246208,-595.39097945,0.00012876,2]
[339048110,1727176246218,-500.0,0.00012876,2]
[339048111,1727176246228,-1952.55,0.00012876,2]
[339048112,1727176246237,-396.21024655,0.00012876,2]
[339048113,1727176246442,-103.78975345,0.00012876,2]